bitfinex-derivatives/quotes_BNBF0:USTF0_20250709
["timestamp","ask_amount","ask_price","bid_price","bid_amount"]
[1752101939358,0.2595117,670.85,669.8,1.52494055]
[1752101939557,0.2595117,670.85,669.81,1.52494055]
[1752101939754,0.2595117,670.85,669.82,1.52494055]
[1752101939954,0.2595117,670.85,669.83,1.52494055]
[1752101940153,0.2595117,670.85,669.84,1.52494055]
[1752101940355,0.2595117,670.85,669.85,1.52494055]
[1752101940557,3.34984022,670.76,669.86,1.52494055]
[1752101942261,3.34984022,670.75,669.86,1.52494055]
[1752101942660,3.34984022,670.76,669.86,1.52494055]
[1752101942860,3.34984022,670.75,669.86,1.52494055]
[1752101943162,3.34984022,670.73,669.86,1.52494055]
[1752101943357,3.34984022,670.75,669.86,1.52494055]
[1752101943556,3.34984022,670.74,669.86,1.52494055]
[1752101946257,3.34984022,670.73,669.86,1.52494055]
[1752101947563,3.34984022,670.72,669.86,1.52494055]
[1752101948958,3.34984022,670.75,669.86,1.52494055]
[1752101949464,3.34984022,670.7,669.86,1.52494055]
[1752101950463,3.34984022,670.69,669.86,1.52494055]
[1752101950763,3.34984022,670.7,669.86,1.52494055]
[1752101951464,3.34984022,670.68,669.86,1.52494055]
[1752101952564,3.34984022,670.67,669.86,1.52494055]
[1752101952864,0.2595117,670.85,669.86,1.52494055]
[1752101952865,3.34984022,670.63,669.86,1.52494055]
[1752101953365,3.34984022,670.6,669.86,1.52494055]
[1752101954465,3.34984022,670.59,669.86,1.52494055]
[1752101956169,3.34984022,670.58,669.86,1.52494055]
[1752101957271,3.34984022,670.57,669.86,1.52494055]
[1752101958768,3.34984022,670.53,669.86,1.52494055]
[1752101959974,3.34984022,670.52,669.86,1.52494055]
[1752101960774,0.2595117,670.85,669.86,1.52494055]
[1752101960775,3.34984022,670.5,669.86,1.52494055]
[1752101961276,3.34984022,670.49,669.86,1.52494055]
[1752101962976,3.34984022,670.48,669.86,1.52494055]
[1752101963877,3.34984022,670.47,669.86,1.52494055]
[1752101964373,3.34984022,670.47,669.87,1.52494055]
[1752101964577,3.34984022,670.48,669.88,1.52494055]
[1752101964777,3.34984022,670.48,669.89,1.52494055]
[1752101965077,3.34984022,670.47,669.9,1.52494055]
[1752101965273,3.34984022,670.47,669.91,1.52494055]
[1752101965479,3.34984022,670.47,669.92,1.52494055]
[1752101965778,3.34984022,670.47,669.93,1.52494055]
[1752101965977,3.34984022,670.47,669.94,1.52494055]
[1752101966173,3.34984022,670.47,669.95,1.52494055]
[1752101966375,3.34984022,670.43,669.96,1.52494055]
[1752101966575,3.34984022,670.43,669.97,1.52494055]
[1752101966774,3.34984022,670.43,669.98,1.52494055]
[1752101966973,3.34984022,670.43,669.99,1.52494055]
[1752101967178,3.34984022,670.43,670.0,1.52494055]
[1752101967373,3.34984022,670.43,669.85,2.45]
[1752101967575,3.34984022,670.43,669.86,1.53018588]
[1752101967874,3.34984022,670.43,669.87,1.53018588]
[1752101968081,3.34984022,670.43,669.88,1.53018588]
[1752101968282,3.34984022,670.43,669.89,1.53018588]
[1752101968479,3.34984022,670.43,669.85,2.45]
[1752101968480,3.34984022,670.43,669.9,1.53018588]
[1752101968680,3.34984022,670.43,669.91,1.5302406]
[1752101968880,3.34984022,670.43,669.92,1.5302406]
[1752101969081,3.34984022,670.46,669.93,1.5302406]
[1752101969377,3.34984022,670.46,669.94,1.5302406]
[1752101969581,3.34984022,670.46,669.95,1.5302406]
[1752101969877,3.34984022,670.47,669.96,1.5302406]
[1752101970081,3.34984022,670.47,669.97,1.5302406]
[1752101970281,3.34984022,670.45,669.98,1.5302406]
[1752101970478,3.34984022,670.45,669.99,1.5302406]
[1752101970777,3.34984022,670.45,669.85,2.45]
[1752101970979,3.34984022,670.45,669.86,1.53043286]
[1752101971178,3.34984022,670.45,669.87,1.53043286]
[1752101971377,3.34984022,670.45,669.88,1.53043286]
[1752101971580,3.34984022,670.45,669.89,1.53043286]
[1752101971777,3.34984022,670.45,669.9,1.53043286]
[1752101971981,3.34984022,670.45,669.91,1.53043286]
[1752101972180,3.34984022,670.45,669.92,1.53043286]
[1752101972380,3.34984022,670.45,669.93,1.53043286]
[1752101972682,3.34984022,670.46,669.94,1.53043286]
[1752101972883,3.34984022,670.47,669.95,1.53043286]
[1752101973083,3.34984022,670.47,669.96,1.53043286]
[1752101973281,3.34984022,670.46,669.97,1.53043286]
[1752101973578,3.34984022,670.46,669.98,1.53043286]
[1752101973779,3.34984022,670.46,669.99,1.53043286]
[1752101973984,3.34984022,670.46,669.85,2.45]
[1752101974284,3.34984022,670.46,669.86,1.52902746]
[1752101974483,3.34984022,670.46,669.87,1.52902746]
[1752101974778,3.34984022,670.46,669.88,1.52902746]
[1752101974979,3.34984022,670.46,669.89,1.52902746]
[1752101975182,3.34984022,670.47,669.9,1.52902746]
[1752101975380,3.34984022,670.47,669.91,1.52902746]
[1752101975580,3.34984022,670.47,669.92,1.52902746]
[1752101975779,3.34984022,670.47,669.93,1.52902746]
[1752101975978,3.34984022,670.47,669.94,1.52902746]
[1752101976184,3.34984022,670.47,669.95,1.52902746]
[1752101976479,3.34984022,670.47,669.96,1.52902746]
[1752101976684,3.34984022,670.46,669.97,1.52902746]
[1752101976881,3.34984022,670.46,669.98,1.52902746]
[1752101977086,3.34984022,670.46,669.99,1.52902746]
[1752101977385,3.34984022,670.46,669.85,2.45]
[1752101977680,3.34984022,670.46,669.86,1.52868149]
[1752101977981,3.34984022,670.46,669.87,1.52868149]
[1752101978180,3.34984022,670.46,669.88,1.52868149]
[1752101978380,3.34984022,670.46,669.89,1.52868149]
[1752101978582,3.34984022,670.46,669.9,1.52868149]
[1752101978781,3.34984022,670.46,669.91,1.52868149]
[1752101978981,3.34984022,670.43,669.92,1.52868149]
[1752101979285,3.34984022,670.46,669.93,1.52868149]
[1752101979481,3.34984022,670.46,669.94,1.52868149]
[1752101979687,3.34984022,670.46,669.95,1.52868149]
[1752101979881,3.34984022,670.46,669.96,1.52868149]
[1752101980085,3.34984022,670.46,669.97,1.52868149]
[1752101980287,3.34984022,670.46,669.98,1.52868149]
[1752101980486,3.34984022,670.46,669.99,1.52868149]
[1752101980683,3.34984022,670.46,669.77,1.67451513]
[1752101980883,3.34984022,670.46,669.78,1.52868075]
[1752101981086,3.34984022,670.46,669.79,1.52868075]
[1752101981384,3.34984022,670.46,669.8,1.52868075]
[1752101981683,3.34984022,670.46,669.81,1.52868075]
[1752101981889,3.34984022,670.46,669.82,1.52868075]
[1752101982083,3.34984022,670.45,669.83,1.52868075]
[1752101982284,3.34984022,670.75,669.84,1.52868075]
[1752101982483,3.34984022,670.76,669.85,1.52868075]
[1752101982685,3.34984022,670.76,669.86,1.52868075]
[1752101982884,3.34984022,670.76,669.87,1.52868075]
[1752101983089,3.34984022,670.76,669.88,1.52868075]
[1752101983385,3.34984022,670.76,669.89,1.52868075]
[1752101983587,3.34984022,670.76,669.9,1.52868075]
[1752101983787,3.34984022,670.76,669.91,1.52868075]
[1752101984088,3.34984022,670.76,669.92,1.52868075]
[1752101984392,3.34984022,670.75,669.93,1.52868075]
[1752101984686,3.34984022,670.75,669.94,1.52868075]
[1752101984889,3.34984022,670.75,669.95,1.52868075]
[1752101985087,3.34984022,670.75,669.96,1.52868075]
[1752101985286,3.34984022,670.75,669.97,1.52868075]
[1752101985487,3.34984022,670.76,669.98,1.52868075]
[1752101985688,3.34984022,670.76,669.99,1.52868075]
[1752101985891,3.34984022,670.76,669.87,1.676]
[1752101986191,3.34984022,670.76,669.88,1.52843202]
[1752101986392,3.34984022,670.77,669.89,1.52843202]
[1752101986593,3.34984022,670.77,669.9,1.52843202]
[1752101986792,3.34984022,670.77,669.91,1.52843202]
[1752101987093,0.2595117,670.85,669.92,1.52843202]
[1752101987293,0.2595117,670.85,669.93,1.52843202]
[1752101987588,0.2595117,670.85,669.94,1.52843202]
[1752101987788,0.2595117,670.85,669.95,1.52843202]
[1752101988088,0.2595117,670.85,669.96,1.52843202]
[1752101988293,0.2595117,670.85,669.97,1.52843202]
[1752101988492,3.34984022,670.84,669.87,1.676]
[1752101988793,3.34984022,670.84,669.88,1.52870989]
[1752101989089,3.34984022,670.84,669.89,1.52870989]
[1752101989292,3.34984022,670.84,669.9,1.52870989]
[1752101989592,3.34984022,670.84,669.91,1.52870989]
[1752101989894,3.34984022,670.84,669.92,1.52870989]
[1752101990093,3.34984022,670.84,669.93,1.52870989]
[1752101990392,3.34984022,670.84,669.94,1.52870989]
[1752101990593,3.34984022,670.84,669.95,1.52870989]
[1752101990794,3.34984022,670.84,669.96,1.52870989]
[1752101990995,3.34984022,670.84,669.87,1.676]
[1752101991195,3.34984022,670.84,669.88,1.52842923]
[1752101991490,3.34984022,670.84,669.89,1.52842923]
[1752101991795,3.34984022,670.84,669.9,1.52842923]
[1752101991989,3.34984022,670.84,669.91,1.52842923]
[1752101992192,3.34984022,670.79,669.92,1.52842923]
[1752101992391,3.34984022,670.73,669.93,1.52842923]
[1752101992694,3.34984022,670.73,669.87,1.676]
[1752101992695,3.34984022,670.73,669.94,1.52842923]
[1752101992891,3.34984022,670.73,669.95,1.52842923]
[1752101993095,3.34984022,670.73,669.87,1.676]
[1752101993296,3.34984022,670.73,669.88,1.52829923]
[1752101993596,3.34984022,670.73,669.89,1.52829923]
[1752101993897,3.34984022,670.73,669.9,1.52829923]
[1752101994093,3.34984022,670.73,669.91,1.52829923]
[1752101994395,3.34984022,670.71,669.92,1.52829923]
[1752101994697,3.34984022,670.71,669.93,1.52829923]
[1752101994896,3.34984022,670.71,669.87,1.676]
[1752101995099,3.34984022,670.71,669.88,1.52817816]
[1752101995301,3.34984022,670.71,669.89,1.52817816]
[1752101995496,3.34984022,670.71,669.9,1.52817816]
[1752101995695,3.34984022,670.71,669.91,1.52817816]
[1752101995896,3.34984022,670.71,669.92,1.52817816]
[1752101996097,3.34984022,670.7,669.93,1.52817816]
[1752101996299,3.34984022,670.7,669.87,1.676]
[1752101996600,3.34984022,670.7,669.88,1.52808471]
[1752101996799,3.34984022,670.7,669.89,1.52808471]
[1752101997096,3.34984022,670.51,669.9,1.52808471]
[1752101997296,3.34984022,670.51,669.91,1.52808471]
[1752101997601,3.34984022,670.51,669.92,1.52808471]
[1752101997801,3.34984022,670.5,669.87,1.676]
[1752101998100,3.34984022,670.5,669.88,1.52804244]
[1752101998400,3.34984022,670.5,669.89,1.52804244]
[1752101998601,3.34984022,670.51,669.9,1.52804244]
[1752101998800,3.34984022,670.51,669.91,1.52804244]
[1752101999001,3.34984022,670.51,669.92,1.52804244]
[1752101999198,3.34984022,670.5,669.87,1.676]
[1752101999502,3.34984022,670.49,669.88,1.52803708]
[1752101999702,3.34984022,670.49,669.89,1.52803708]
[1752102000002,3.34984022,670.49,669.9,1.52803708]
[1752102000198,3.34984022,670.74,669.91,1.52803708]
[1752102000498,3.34984022,670.68,669.92,1.52803708]
[1752102000698,3.34984022,670.66,669.87,1.676]
[1752102000999,3.34984022,670.63,669.87,1.676]
[1752102001503,3.34984022,670.64,669.87,1.676]
[1752102001701,3.34984022,670.63,669.87,1.676]
[1752102002002,0.2595117,670.85,669.88,1.52828334]
[1752102002003,3.34984022,670.8,669.88,1.52828334]
[1752102002299,3.34984022,670.8,669.89,1.52828334]
[1752102002498,3.34984022,670.8,669.9,1.52828334]
[1752102002703,3.34984022,670.8,669.91,1.52828334]
[1752102002898,3.34984022,670.8,669.92,1.52828334]
[1752102003098,3.34984022,670.8,669.93,1.52828334]
[1752102003299,3.34984022,670.8,669.94,1.52828334]
[1752102003599,3.34984022,670.8,669.95,1.52828334]
[1752102003802,3.34984022,670.8,669.96,1.52828334]
[1752102004003,3.34984022,670.8,669.97,1.52828334]
[1752102004200,3.34984022,670.8,669.98,1.52828334]
[1752102004498,3.34984022,670.82,669.99,1.52828334]
[1752102004698,3.34984022,670.82,670.0,1.52828334]
[1752102004903,3.34984022,670.82,670.01,1.52828334]
[1752102005106,3.34984022,670.59,669.87,1.676]
[1752102005301,3.34984022,670.59,669.88,1.52401163]
[1752102005604,3.34984022,670.59,669.89,1.52401163]
[1752102005805,3.34984022,670.58,669.9,1.52401163]
[1752102006005,3.34984022,670.58,669.91,1.52401163]
[1752102006305,3.34984022,670.59,669.92,1.52401163]
[1752102006499,3.34984022,670.58,669.93,1.52401163]
[1752102006700,3.34984022,670.58,669.94,1.52401163]
[1752102007005,3.34984022,670.51,669.95,1.52401163]
[1752102007304,3.34984022,670.51,669.96,1.52401163]
[1752102007605,3.34984022,670.51,669.97,1.52401163]
[1752102007905,3.34984022,670.51,669.98,1.52401163]
[1752102008105,3.34984022,670.51,669.87,1.676]
[1752102008304,3.34984022,670.51,669.88,1.52374586]
[1752102008502,3.34984022,670.54,669.89,1.52374586]
[1752102008806,3.34984022,670.55,669.9,1.52374586]
[1752102009105,3.34984022,670.55,669.91,1.52374586]
[1752102009405,3.34984022,670.55,669.92,1.52374586]
[1752102009605,3.34984022,670.55,669.93,1.52374586]
[1752102009901,3.34984022,670.55,669.94,1.52374586]
[1752102010100,3.34984022,670.55,669.95,1.52374586]
[1752102010305,3.34984022,670.55,669.96,1.52374586]
[1752102010500,3.34984022,670.55,669.97,1.52374586]
[1752102010704,3.34984022,670.55,669.98,1.52374586]
[1752102010904,3.34984022,670.55,669.99,1.52374586]
[1752102011104,3.34984022,670.55,669.87,1.676]
[1752102011305,3.34984022,670.55,669.88,1.52371121]
[1752102011508,3.34984022,670.55,669.89,1.52371121]
[1752102011707,3.34984022,670.55,669.9,1.52371121]
[1752102011908,3.34984022,670.55,669.91,1.52371121]
[1752102012108,3.34984022,670.55,669.92,1.52371121]
[1752102012309,3.34984022,670.54,669.93,1.52371121]
[1752102012505,3.34984022,670.54,669.94,1.52371121]
[1752102012708,3.34984022,670.54,669.95,1.52371121]
[1752102012909,3.34984022,670.54,669.96,1.52371121]
[1752102013108,3.34984022,670.54,669.97,1.52371121]
[1752102013309,3.34984022,670.54,669.98,1.52371121]
[1752102013610,3.34984022,670.54,669.87,1.676]
[1752102013805,3.34984022,670.54,669.88,1.52358915]
[1752102014109,3.34984022,670.54,669.89,1.52358915]
[1752102014305,3.34984022,670.54,669.9,1.52358915]
[1752102014605,3.34984022,670.52,669.91,1.52358915]
[1752102014805,3.34984022,670.52,669.92,1.52358915]
[1752102015007,3.34984022,670.52,669.93,1.52358915]
[1752102015307,3.34984022,670.52,669.94,1.52358915]
[1752102015508,3.34984022,670.52,669.95,1.52358915]
[1752102015706,3.34984022,670.52,669.96,1.52358915]
[1752102015905,3.34984022,670.52,669.97,1.52358915]
[1752102016105,3.34984022,670.52,669.87,1.676]
[1752102016309,3.34984022,670.52,669.88,1.52350892]
[1752102016606,3.34984022,670.52,669.89,1.52350892]
[1752102016807,3.34984022,670.52,669.9,1.52350892]
[1752102017009,3.34984022,670.51,669.91,1.52350892]
[1752102017207,3.34984022,670.51,669.87,1.676]
[1752102017208,3.34984022,670.51,669.92,1.52350892]
[1752102017408,3.34984022,670.51,669.93,1.52350892]
[1752102017611,3.34984022,670.51,669.94,1.52350892]
[1752102017809,3.34984022,670.51,669.95,1.52350892]
[1752102018108,3.34984022,670.51,669.96,1.52350892]
[1752102018309,3.34984022,670.51,669.87,1.676]
[1752102018514,3.34984022,670.47,669.88,1.52333071]
[1752102018711,3.34984022,670.47,669.89,1.52333071]
[1752102018909,3.34984022,670.47,669.9,1.52333071]
[1752102019109,3.34984022,670.47,669.91,1.52333071]
[1752102019312,3.34984022,670.47,669.92,1.52333071]
[1752102019612,3.34984022,670.47,669.93,1.52333071]
[1752102019813,3.34984022,670.47,669.87,1.676]
[1752102019814,3.34984022,670.47,669.94,1.52333071]
[1752102020010,3.34984022,670.47,669.95,1.52333071]
[1752102020209,3.34984022,670.47,669.96,1.52333071]
[1752102020512,3.34984022,670.47,669.87,1.676]
[1752102020714,3.34984022,670.53,669.88,1.52325913]
[1752102020914,3.34984022,670.54,669.89,1.52325913]
[1752102021113,3.34984022,670.54,669.87,1.676]
[1752102021114,3.34984022,670.54,669.9,1.52325913]
[1752102021315,3.34984022,670.54,669.91,1.52325913]
[1752102021514,3.34984022,670.54,669.92,1.52325913]
[1752102021713,3.34984022,670.57,669.93,1.52325913]
[1752102021913,3.34984022,670.57,669.94,1.52325913]
[1752102022116,3.34984022,670.57,669.95,1.52325913]
[1752102022316,3.34984022,670.57,669.96,1.52325913]
[1752102022516,3.34984022,670.57,669.97,1.52325913]
[1752102022714,3.34984022,670.57,669.87,1.676]
[1752102022917,3.34984022,670.57,669.88,1.52321081]
[1752102023115,3.34984022,670.57,669.89,1.52321081]
[1752102023313,3.34984022,670.57,669.9,1.52321081]
[1752102023518,3.34984022,670.57,669.91,1.52321081]
[1752102023818,3.34984022,670.58,669.92,1.52321081]
[1752102024018,3.34984022,670.58,669.93,1.52321081]
[1752102024219,3.34984022,670.58,669.94,1.52321081]
[1752102024417,3.34984022,670.58,669.95,1.52321081]
[1752102024619,3.34984022,670.58,669.96,1.52321081]
[1752102024817,3.34984022,670.58,669.97,1.52321081]
[1752102025021,3.34984022,670.58,669.87,1.676]
[1752102025217,3.34984022,670.57,669.88,1.52320782]
[1752102025421,3.34984022,670.57,669.89,1.52320782]
[1752102025720,3.34984022,670.57,669.9,1.52320782]
[1752102025918,3.34984022,670.57,669.91,1.52320782]
[1752102026118,3.34984022,670.57,669.92,1.52320782]
[1752102026319,3.34984022,670.59,669.93,1.52320782]
[1752102026518,3.34984022,670.57,669.94,1.52320782]
[1752102026722,3.34984022,670.57,669.95,1.52320782]
[1752102027022,3.34984022,670.57,669.87,1.676]
[1752102027222,3.34984022,670.57,669.88,1.52338437]
[1752102027422,3.34984022,670.58,669.89,1.52338437]
[1752102027622,3.34984022,670.55,669.9,1.52338437]
[1752102027820,3.34984022,670.53,669.91,1.52338437]
[1752102028019,3.34984022,670.52,669.92,1.52338437]
[1752102028221,3.34984022,670.54,669.93,1.52338437]
[1752102028523,3.34984022,670.54,669.94,1.52338437]
[1752102028723,3.34984022,670.55,669.95,1.52338437]
[1752102028923,3.34984022,670.55,669.87,1.676]
[1752102029219,3.34984022,670.55,669.88,1.52337372]
[1752102029419,3.34984022,670.55,669.89,1.52337372]
[1752102029623,3.34984022,670.55,669.9,1.52337372]
[1752102029820,3.34984022,670.54,669.91,1.52337372]
[1752102030021,3.34984022,670.54,669.92,1.52337372]
[1752102030221,3.34984022,670.54,669.93,1.52337372]
[1752102030524,3.34984022,670.52,669.94,1.52337372]
[1752102030722,3.34984022,670.56,669.95,1.52337372]
[1752102030924,3.34984022,670.56,669.87,1.676]
[1752102031224,3.34984022,670.56,669.88,1.52318164]
[1752102031421,3.34984022,670.56,669.89,1.52318164]
[1752102031620,3.34984022,670.56,669.9,1.52318164]
[1752102031821,3.34984022,670.51,669.91,1.52318164]
[1752102032126,3.34984022,670.5,669.92,1.52318164]
[1752102032426,3.34984022,670.54,669.93,1.52318164]
[1752102032726,3.34984022,670.54,669.94,1.52318164]
[1752102032925,3.34984022,670.54,669.95,1.52318164]
[1752102033124,3.34984022,670.54,669.87,1.676]
[1752102033429,3.34984022,670.54,669.88,1.52435555]
[1752102033728,3.34984022,670.54,669.89,1.52435555]
[1752102033925,3.34984022,670.54,669.9,1.52435555]
[1752102034124,3.34984022,670.54,669.91,1.52435555]
[1752102034322,3.34984022,670.54,669.87,1.676]
[1752102034323,3.34984022,670.59,669.92,1.52435555]
[1752102034526,3.34984022,670.57,669.93,1.52435555]
[1752102034726,3.34984022,670.59,669.94,1.52435555]
[1752102034925,3.34984022,670.58,669.95,1.52435555]
[1752102035126,3.34984022,670.58,669.87,1.676]
[1752102035330,3.34984022,670.58,669.88,1.52441533]
[1752102035637,3.34984022,670.58,669.89,1.52441533]
[1752102035829,3.34984022,670.58,669.9,1.52441533]
[1752102036131,3.34984022,670.58,669.91,1.52441533]
[1752102036325,3.34984022,670.58,669.92,1.52441533]
[1752102036626,3.34984022,670.58,669.93,1.52441533]
[1752102036825,3.34984022,670.58,669.94,1.52441533]
[1752102037025,3.34984022,670.58,669.95,1.52441533]
[1752102037229,3.34984022,670.58,669.87,1.676]
[1752102037429,3.34984022,670.58,669.88,1.52443029]
[1752102037628,3.34984022,670.58,669.89,1.52443029]
[1752102037931,3.34984022,670.58,669.9,1.52443029]
[1752102038128,3.34984022,670.58,669.91,1.52443029]
[1752102038332,3.34984022,670.58,669.92,1.52443029]
[1752102038531,3.34984022,670.58,669.93,1.52443029]
[1752102038829,3.34984022,670.58,669.94,1.52443029]
[1752102039028,3.34984022,670.58,669.95,1.52443029]
[1752102039327,3.34984022,670.58,669.87,1.676]
[1752102039527,3.34984022,670.58,669.88,1.52458164]
[1752102039728,3.34984022,670.58,669.89,1.52458164]
[1752102040030,3.34984022,670.58,669.9,1.52458164]
[1752102040229,3.34984022,670.58,669.87,1.676]
[1752102040230,3.34984022,670.58,669.91,1.52458164]
[1752102040427,3.34984022,670.58,669.92,1.52458164]
[1752102040628,3.34984022,670.58,669.93,1.52458164]
[1752102040833,3.34984022,670.58,669.94,1.52458164]
[1752102041032,3.34984022,670.58,669.95,1.52458164]
[1752102041233,3.34984022,670.53,669.96,1.52458164]
[1752102041430,3.34984022,670.52,669.73,0.25951751]
[1752102041632,3.34984022,670.52,669.74,1.52471375]
[1752102041830,3.34984022,670.52,669.75,1.52471375]
[1752102042032,3.34984022,670.52,669.76,1.52471375]
[1752102042230,3.34984022,670.53,669.77,1.52471375]
[1752102042433,3.34984022,670.53,669.78,1.52471375]
[1752102042633,3.34984022,670.53,669.79,1.52471375]
[1752102042833,3.34984022,670.53,669.8,1.52471375]
[1752102043034,3.34984022,670.53,669.81,1.52471375]
[1752102043234,3.34984022,670.52,669.82,1.52471375]
[1752102043436,3.34984022,670.52,669.83,1.52471375]
[1752102043734,3.34984022,670.52,669.84,1.52471375]
[1752102044030,3.34984022,670.52,669.85,1.52471375]
[1752102044231,3.34984022,670.52,669.86,1.52471375]
[1752102044431,3.34984022,670.51,669.87,1.52471375]
[1752102044632,3.34984022,670.52,669.88,1.52471375]
[1752102044837,3.34984022,670.52,669.89,1.52471375]
[1752102045036,3.34984022,670.52,669.85,2.197]
[1752102045037,3.34984022,670.53,669.9,1.52471375]
[1752102045237,3.34984022,670.53,669.91,1.52471375]
[1752102045537,3.34984022,670.53,669.92,1.52471375]
[1752102045735,3.34984022,670.53,669.93,1.52471375]
[1752102045934,3.34984022,670.57,669.94,1.52471375]
[1752102046136,3.34984022,670.57,669.95,1.52471375]
[1752102046334,3.34984022,670.57,669.96,1.52471375]
[1752102046537,3.34984022,670.57,669.97,1.52471375]
[1752102046833,3.34984022,670.57,669.98,1.52471375]
[1752102047133,3.34984022,670.57,669.99,1.52471375]
[1752102047332,3.34984022,670.56,670.0,1.52471375]
[1752102047533,3.34984022,670.56,670.01,1.52471375]
[1752102047733,3.34984022,670.56,670.02,1.52471375]
[1752102047938,3.34984022,670.56,670.03,1.52471375]
[1752102048139,3.34984022,670.56,670.04,1.52471375]
[1752102048340,3.34984022,670.56,669.85,2.197]
[1752102048541,3.34984022,670.56,669.86,1.5248439]
[1752102048839,3.34984022,670.56,669.87,1.5248439]
[1752102049037,3.34984022,670.56,669.88,1.5248439]
[1752102049337,3.34984022,670.56,669.89,1.5248439]
[1752102049537,3.34984022,670.56,669.9,1.5248439]
[1752102049839,3.34984022,670.58,669.91,1.5248439]
[1752102050041,3.34984022,670.58,669.92,1.5248439]
[1752102050235,3.34984022,670.58,669.93,1.5248439]
[1752102050438,3.34984022,670.59,669.94,1.5248439]
[1752102050637,3.34984022,670.59,669.95,1.5248439]
[1752102050942,3.34984022,670.64,669.96,1.5248439]
[1752102051142,3.34984022,670.64,669.97,1.5248439]
[1752102051437,3.34984022,670.64,669.98,1.5248439]
[1752102051637,3.34984022,670.64,669.99,1.5248439]
[1752102051938,3.34984022,670.64,670.0,1.5248439]
[1752102052142,3.34984022,670.62,670.01,1.5248439]
[1752102052344,3.34984022,670.62,670.02,1.5248439]
[1752102052542,3.34984022,670.62,670.03,1.5248439]
[1752102052740,3.34984022,670.62,670.04,1.5248439]
[1752102052944,3.34984022,670.62,669.85,2.197]
[1752102053143,3.34984022,670.62,669.86,1.52511444]
[1752102053342,3.34984022,670.62,669.87,1.52511444]
[1752102053541,3.34984022,670.61,669.88,1.52511444]
[1752102053741,3.34984022,670.61,669.89,1.52511444]
[1752102054046,3.34984022,670.61,669.9,1.52511444]
[1752102054241,3.34984022,670.61,669.85,2.197]
[1752102054242,3.34984022,670.59,669.91,1.52511444]
[1752102054444,3.34984022,670.59,669.92,1.52511444]
[1752102054642,3.34984022,670.59,669.93,1.52511444]
[1752102054941,3.34984022,670.59,669.94,1.52511444]
[1752102055143,3.34984022,670.58,669.95,1.52511444]
[1752102055341,3.34984022,670.58,669.96,1.52511444]
[1752102055542,3.34984022,670.58,669.97,1.52511444]
[1752102055847,3.34984022,670.57,669.98,1.52511444]
[1752102056146,3.34984022,670.57,669.99,1.52511444]
[1752102056345,3.34984022,670.57,670.0,1.52511444]
[1752102056545,3.34984022,670.57,670.01,1.52511444]
[1752102056742,3.34984022,670.57,669.85,2.197]
[1752102057041,3.34984022,670.57,669.86,1.52583189]
[1752102057345,3.34984022,670.57,669.87,1.52583189]
[1752102057643,3.34984022,670.57,669.88,1.52583189]
[1752102057846,3.34984022,670.57,669.89,1.52583189]
[1752102058046,3.34984022,670.56,669.9,1.52583189]
[1752102058247,3.34984022,670.56,669.91,1.52583189]
[1752102058546,3.34984022,670.56,669.85,2.197]
[1752102058547,3.34984022,670.6,669.92,1.52583189]
[1752102058740,3.34984022,670.6,669.93,1.52583189]
[1752102058942,3.34984022,670.6,669.94,1.52583189]
[1752102059147,3.34984022,670.6,669.95,1.52583189]
[1752102059348,3.34984022,670.6,669.96,1.52583189]
[1752102059549,3.34984022,670.6,669.97,1.52583189]
[1752102059747,3.34984022,670.6,669.98,1.52583189]
[1752102060042,3.34984022,670.61,669.99,1.52583189]
[1752102060245,3.34984022,670.57,670.0,1.52583189]
[1752102060443,3.34984022,670.57,670.01,1.52583189]
[1752102060647,3.34984022,670.57,670.02,1.52583189]
[1752102060848,3.34984022,670.57,669.85,2.197]
[1752102061145,0.2595117,670.85,669.85,2.197]
[1752102061146,3.34984022,670.58,669.86,1.52630749]
[1752102061348,3.34984022,670.58,669.87,1.52630749]
[1752102061547,3.34984022,670.57,669.88,1.52630749]
[1752102061747,3.34984022,670.57,669.89,1.52630749]
[1752102061946,3.34984022,670.57,669.9,1.52630749]
[1752102062150,3.34984022,670.57,669.91,1.52630749]
[1752102062350,3.34984022,670.57,669.85,2.197]
[1752102062548,3.34984022,670.57,669.86,1.52635591]
[1752102062745,3.34984022,670.57,669.87,1.52635591]
[1752102062950,3.34984022,670.57,669.88,1.52635591]
[1752102063244,3.34984022,670.57,669.89,1.52635591]
[1752102063552,3.34984022,670.57,669.9,1.52635591]
[1752102063846,3.34984022,670.57,669.91,1.52635591]
[1752102064050,3.34984022,670.57,669.92,1.52408555]
[1752102064252,3.34984022,670.56,669.93,1.52408555]
[1752102064450,3.34984022,670.56,669.94,1.52408555]
[1752102064648,3.34984022,670.56,669.95,1.52408555]
[1752102064951,3.34984022,670.56,669.96,1.52408555]
[1752102065250,3.34984022,670.56,669.97,1.52408555]
[1752102065452,3.34984022,670.56,669.98,1.52408555]
[1752102065650,3.34984022,670.57,669.99,1.52408555]
[1752102065847,3.34984022,670.57,670.0,1.52408555]
[1752102066147,3.34984022,670.56,670.01,1.52408555]
[1752102066346,3.34984022,670.56,670.02,1.52408555]
[1752102066545,3.34984022,670.56,669.85,2.197]
[1752102066750,3.34984022,670.56,669.86,1.52409578]